bitfinex-derivatives/quotes_ETHF0:USTF0_20251107
["timestamp","ask_amount","ask_price","bid_price","bid_amount"]
[1762500478754,2.48795972,3342.3,3342.2,0.48498]
[1762500479257,4.48197588,3342.3,3342.2,0.48498]
[1762500479653,3.4222894,3342.3,3342.2,0.48498]
[1762500480048,5.01149055,3342.3,3342.2,0.48498]
[1762500480656,3.4222894,3342.3,3342.2,0.48498]
[1762500480857,5.0134658,3342.3,3342.2,0.48498]
[1762500481056,3.4222894,3342.3,3342.2,0.48498]
[1762500481459,5.01547044,3342.3,3342.2,0.48498]
[1762500481664,0.485,3342.2,3342.1,0.485]
[1762500481863,1.4294994,3342.2,3342.1,0.485]
[1762500482166,1.4294994,3342.2,3342.1,2.3797]
[1762500482463,2.00687513,3342.2,3342.1,2.3797]
[1762500482664,0.9444994,3342.2,3342.1,2.3797]
[1762500483265,0.9444994,3342.2,3342.1,8.3637]
[1762500484164,3.584e-05,3342.2,3342.1,2.3797]
[1762500484353,3.2078,3342.8,3342.7,2.37961]
[1762500485570,3.6927,3342.8,3342.7,2.37961]
[1762500486166,3.2078,3342.8,3342.7,2.37961]
[1762500487163,9.09683212,3343.1,3343.0,3.50327]
[1762500487164,0.00383212,3343.1,3343.0,3.50327]
[1762500488264,0.00383212,3343.1,3343.0,9.48567]
[1762500488465,0.00383212,3343.1,3343.0,3.50327]
[1762500488962,0.00383212,3343.1,3343.0,9.48567]
[1762500489169,0.00383212,3343.1,3343.0,3.50327]
[1762500489957,0.00383212,3343.1,3343.0,9.48567]
[1762500490168,0.00383212,3343.1,3343.0,3.50327]
[1762500490368,0.00383212,3343.1,3343.0,9.48567]
[1762500490960,0.48474,3343.9,3343.0,20.69347]
[1762500491172,0.48474,3343.9,3343.8,2.07205]
[1762500492067,0.48718036,3343.9,3343.8,2.07524204]
[1762500492972,2.12938036,3343.9,3343.8,0.00319204]
[1762500493973,2.12938036,3343.9,3343.8,0.48794204]
[1762500494370,1.64464036,3343.9,3343.8,2.07524204]
[1762500494575,0.00244036,3343.9,3343.8,2.07524204]
[1762500495271,2.12938036,3343.9,3343.8,0.00319204]
[1762500495570,11.21538036,3343.9,3343.8,0.00319204]
[1762500496177,2.48718878,3343.9,3343.8,0.48794204]
[1762500497774,2.97192878,3343.9,3343.8,0.48794204]
[1762500499268,2.48718878,3343.9,3343.8,2.07524204]
[1762500499475,0.84498878,3343.9,3343.8,2.07524204]
[1762500499977,0.00244036,3343.9,3343.8,2.07524204]
[1762500502483,0.00244036,3343.9,3343.8,0.48794204]
[1762500502682,0.00244036,3343.9,3343.8,2.07524204]
[1762500506781,0.48718036,3343.9,3343.8,2.07524204]
[1762500506980,0.00244036,3343.9,3343.8,2.07524204]
[1762500507895,2.12938036,3343.9,3343.8,0.00319204]
[1762500508893,0.00244036,3343.9,3343.8,1.59049204]
[1762500509091,0.00244036,3343.9,3343.8,2.07524204]
[1762500509288,0.48718036,3343.9,3343.8,2.07524204]
[1762500509489,0.00244036,3343.9,3343.8,2.07524204]
[1762500513495,0.00244036,3343.9,3343.8,8.05604204]
[1762500513697,0.00244036,3343.9,3343.8,2.07524204]
[1762500516201,4.036e-05,3343.9,3343.8,8.05604204]
[1762500517093,4.036e-05,3343.9,3343.8,2.07524204]
[1762500517499,4.036e-05,3343.9,3343.8,8.05604204]
[1762500518603,4.036e-05,3343.9,3343.8,2.07524204]
[1762500519504,4.036e-05,3343.9,3343.8,8.05604204]
[1762500519697,4.036e-05,3343.9,3343.8,17.09504204]
[1762500521301,4.036e-05,3343.9,3343.8,11.11424204]
[1762500521499,4.036e-05,3343.9,3343.8,17.09504204]
[1762500521699,4.036e-05,3343.9,3343.8,11.11424204]
[1762500521899,4.036e-05,3343.9,3343.8,17.09504204]
[1762500524302,4.036e-05,3343.9,3343.8,11.11424204]
[1762500524493,4.036e-05,3343.9,3343.8,17.09504204]
[1762500524700,6.14e-06,3344.2,3344.1,1.76081]
[1762500525296,6.14e-06,3344.2,3344.1,7.74161]
[1762500525702,1.84584,3345.3,3345.2,0.48455]
[1762500526497,0.7901,3345.0,3344.7,9.024]
[1762500526701,1.84594,3344.7,3344.6,0.48462]
[1762500528802,2.1514,3344.5,3344.4,0.48465]
[1762500529107,2.63605,3344.5,3344.4,0.48465]
[1762500529705,2.63605,3344.5,3343.9,0.48474]
[1762500529706,2.1514,3344.0,3343.9,0.48474]
[1762500531107,2.1514,3344.0,3343.9,1.76084]
[1762500531597,0.7901,3344.0,3343.9,1.76084]
[1762500535707,1.3613,3344.2,3344.1,0.48471]
[1762500535903,0.7901,3344.5,3344.4,0.48467]
[1762500536104,2.1514,3344.5,3344.4,0.48467]
[1762500536303,2.63605,3344.5,3344.4,0.48467]
[1762500536508,1.84599,3344.4,3344.3,0.48467]
[1762500536704,1.3613,3344.4,3344.3,0.48467]
[1762500537108,0.7901,3344.5,3344.4,1.76077]
[1762500537504,0.48461,3344.8,3344.7,0.48462]
[1762500537711,1.84591,3344.8,3344.7,0.48462]
[1762500538915,0.7901,3344.5,3344.4,0.48467]
[1762500539106,0.7901,3344.5,3344.4,1.76077]
[1762500539414,0.48461,3344.8,3344.0,0.4762]
[1762500539606,1.8459,3344.9,3344.8,0.4846]
[1762500542208,1.3613,3344.9,3344.8,0.4846]
[1762500542511,1.3613,3344.9,3344.0,0.4762]
[1762500542512,0.79272941,3345.0,3344.9,1.76069]
[1762500542713,1.27730941,3345.0,3344.9,1.76069]
[1762500542911,2.63860941,3345.0,3344.9,1.76069]
[1762500543105,2.63860941,3345.0,3344.9,0.48459]
[1762500545910,2.63607,3344.5,3344.4,0.48464]
[1762500546812,1.84599,3344.4,3344.3,0.48468]
[1762500547007,1.846,3344.3,3344.2,0.48469]
[1762500547609,1.3613,3343.9,3343.8,0.00319204]
[1762500548615,1.3613,3343.9,3343.8,0.48794204]
[1762500548917,0.7901,3344.0,3343.9,0.48474]
[1762500549117,0.7901,3344.0,3343.9,1.71304]
[1762500549314,1.9599,3344.5,3344.4,0.48467]
[1762500549712,0.7408,3344.0,3343.8,0.00319204]
[1762500550014,1.9106,3344.0,3343.9,0.48474]
[1762500550315,1.9106,3344.0,3343.9,1.71304]
[1762500550511,0.7408,3344.0,3343.9,1.71304]
[1762500552219,2.39533,3344.0,3343.9,0.48474]
[1762500553320,1.65454,3343.9,3343.8,0.00319204]
[1762500554021,0.7408,3344.0,3343.5,0.004489]
[1762500554022,1.65458,3343.6,3343.5,0.004489]
[1762500554624,1.65458,3343.6,3343.5,0.489289]
[1762500554817,0.7408,3344.0,3343.9,0.48474]
[1762500555028,1.9106,3344.0,3343.9,0.48787887]
[1762500555923,0.7408,3344.0,3343.9,1.71617887]
[1762500556516,2.44455,3344.5,3344.4,0.48467]
[1762500558322,1.9599,3344.5,3344.4,0.48467]
[1762500558726,0.7901,3344.5,3344.4,1.71297]
[1762500559927,1.9599,3344.5,3344.4,0.48467]
[1762500561029,0.7901,3344.5,3344.4,1.71297]
[1762500561624,0.79272941,3345.0,3344.9,0.48459]
[1762500561827,2.44710941,3345.0,3344.9,0.48459]
[1762500564529,1.65442,3344.9,3344.8,0.48461]
[1762500565827,0.7408,3344.5,3343.9,0.00313887]
[1762500566029,0.48467,3344.4,3344.3,0.48468]
[1762500566234,1.65447,3344.4,3344.3,0.48468]
[1762500566631,0.7408,3344.0,3343.9,0.00313887]
[1762500566944,0.7408,3344.0,3343.9,0.48787887]
[1762500568027,1.9106,3344.5,3344.4,0.48467]
[1762500568432,2.39525,3344.5,3344.4,0.48467]
[1762500570232,1.9106,3344.0,3343.9,0.48787887]
[1762500570633,2.39533,3344.0,3343.9,0.00313887]
[1762500570834,2.39533,3344.0,3343.9,0.48787887]
[1762500571137,1.9106,3344.0,3343.9,0.48787887]
[1762500573738,2.39533,3344.0,3343.9,0.48787887]
[1762500574235,1.9106,3344.0,3343.9,0.48787887]
[1762500577533,1.9106,3344.0,3343.9,1.71617887]
[1762500578935,0.7408,3344.0,3343.9,1.71617887]
[1762500579231,1.52477,3344.4,3344.3,0.48468]
[1762500579638,1.0401,3344.4,3344.3,0.48468]
[1762500581238,0.7408,3344.5,3344.4,1.53147]
[1762500581442,1.5247,3344.9,3344.8,0.48461]
[1762500582232,1.83282941,3345.0,3344.9,0.48459]
[1762500583039,0.79272941,3345.0,3344.9,1.53139]
[1762500583833,0.00262941,3345.0,3344.9,1.53139]
[1762500584740,0.00262941,3345.0,3344.9,9.53139]
[1762500585938,0.00262941,3345.0,3344.9,15.51059]
[1762500586341,0.00262941,3345.0,3344.9,9.53139]
[1762500586540,0.00262941,3345.0,3344.9,15.51059]
[1762500586738,2.941e-05,3345.0,3344.9,15.51059]
[1762500587241,2.941e-05,3345.0,3344.9,9.53139]
[1762500587441,1.841e-05,3345.2,3345.1,1.53137]
[1762500587635,1.06336,3346.5,3346.3,0.48439]
[1762500587842,1.0401,3346.3,3346.2,0.4844]
[1762500588438,1.04357173,3346.3,3346.2,0.48820925]
[1762500591346,1.52796173,3346.3,3346.2,0.48820925]
[1762500593238,1.04357173,3346.3,3346.2,0.48820925]
[1762500593744,1.04357173,3346.3,3346.2,0.00380925]
[1762500593745,1.52796173,3346.3,3346.2,0.00380925]
[1762500594740,1.52796173,3346.3,3346.2,0.48821925]
[1762500595047,1.52796173,3346.3,3346.2,0.00380925]
[1762500599839,1.52796173,3346.3,3346.2,9.25e-06]
[1762500601755,1.52465,3345.4,3345.3,0.48452]
[1762500602746,1.52465,3345.4,3345.3,0.4879397]
[1762500604253,1.52465,3345.4,3345.3,0.0034197]
[1762500604756,1.52465,3345.4,3345.3,1.97e-05]
[1762500605948,2.10362,3345.5,3345.4,0.48452]
[1762500606151,1.6191,3345.5,3345.4,0.48452]
[1762500606450,1.6191,3345.5,3345.4,1.53132]
[1762500607051,2.10361,3345.5,3345.4,0.48452]
[1762500607653,1.6191,3345.5,3345.4,0.48452]
[1762500608065,1.52462,3345.4,3345.3,0.4845497]
[1762500608252,0.48452,3345.4,3345.3,1.97e-05]
[1762500608957,0.48452,3345.4,3345.3,0.4845597]
[1762500609161,0.9102,3344.9,3343.6,3.7495598]
[1762500609551,0.5226,3345.0,3344.9,1.31329]
[1762500609953,1.39474,3345.3,3345.2,0.48455]
[1762500610153,1.39474,3345.3,3345.2,0.48800951]
[1762500610358,1.39474,3345.3,3345.2,0.00345951]
[1762500615566,0.9102,3345.3,3345.2,0.48800951]
[1762500615760,1.39474,3345.3,3345.2,0.48800951]
[1762500616162,0.9102,3345.3,3345.2,0.48800951]
[1762500616357,0.9102,3345.3,3345.2,1.31670951]
[1762500616863,0.579,3345.5,3345.4,0.48452]
[1762500617168,1.97371,3345.5,3345.4,0.48452]
[1762500619969,1.4892,3345.5,3345.4,0.48452]
[1762500620464,1.97371,3345.5,3345.4,0.48452]
[1762500621670,1.4892,3345.5,3345.4,0.48452]
[1762500623173,1.97371,3345.5,3345.4,0.48452]
[1762500624270,1.4892,3345.5,3345.4,0.48452]
[1762500626073,0.004489,3345.6,3345.5,1.31321]
[1762500626277,0.00347173,3346.3,3345.5,1.79421]
[1762500626567,0.91367173,3346.3,3346.2,0.48441]
[1762500626869,1.4328,3346.0,3345.9,0.48444]
[1762500627370,1.91724,3346.0,3345.9,0.48444]
[1762500627769,1.4328,3346.0,3345.9,0.48444]
[1762500629577,0.9102,3345.8,3345.2,0.00345951]
[1762500629774,0.5226,3345.5,3345.2,0.00345951]
[1762500629974,0.5226,3345.5,3345.4,0.48452]
[1762500630173,1.4328,3345.5,3345.4,0.48452]
[1762500630574,1.4328,3346.0,3345.9,0.48445]
[1762500631283,0.5226,3346.0,3345.9,1.31315]
[1762500632381,0.91816073,3346.3,3346.2,0.48441]
[1762500639488,0.00796073,3346.3,3346.2,1.31311]
[1762500639886,0.79296073,3346.3,3346.2,1.31311]
[1762500640087,0.79296073,3346.3,3346.2,0.48441]
[1762500640592,0.79296073,3346.3,3346.1,0.48442]
[1762500640593,0.785,3346.2,3346.1,0.48442]
[1762500641490,1.26941,3346.2,3346.1,0.48442]
[1762500644793,1.2275,3345.5,3345.4,0.48452]
[1762500648496,0.4425,3345.5,3345.4,1.21502]
[1762500649295,1.2275,3346.0,3345.9,0.48445]
[1762500652299,1.2275,3346.0,3345.9,1.21495]
[1762500652498,0.4425,3346.0,3345.9,1.21495]
[1762500655794,1.2275,3346.0,3345.9,0.48445]
[1762500657603,1.71194,3346.0,3345.9,0.48445]
[1762500658902,1.2275,3345.5,3345.4,0.48452]
[1762500659202,0.785,3345.3,3345.2,0.00345951]
[1762500659602,0.785,3345.3,3345.2,0.48800951]
[1762500660706,0.785,3345.3,3345.2,1.21850951]
[1762500661105,0.4425,3345.5,3345.4,0.48452]
[1762500661306,1.2275,3345.5,3345.4,0.48452]
[1762500663610,1.71201,3345.5,3345.4,0.48452]
[1762500664410,1.2275,3345.5,3345.4,0.48452]
[1762500665010,1.71201,3345.5,3345.4,0.48452]
[1762500665708,0.4425,3345.5,3345.2,0.00345951]
[1762500665912,1.71208,3345.0,3344.9,0.489089]
[1762500667006,1.71208,3345.0,3344.9,0.49273337]
[1762500667704,1.71208,3345.0,3344.9,0.00813337]
[1762500668613,1.71208,3345.0,3344.9,0.49273337]
[1762500668815,1.2275,3345.0,3344.9,0.49273337]
[1762500669110,1.71208,3345.0,3344.9,0.00813337]
[1762500669612,1.71208,3345.0,3344.9,0.49273337]
[1762500670205,1.71208,3345.0,3344.9,0.00813337]
[1762500670813,1.71208,3345.0,3344.9,0.49273337]
[1762500671210,0.3823,3344.0,3343.9,3.12541258]
[1762500671408,0.3823,3344.0,3343.9,0.4418]
[1762500671813,0.3823,3344.0,3343.9,0.92654]
[1762500672316,0.3823,3344.0,3343.9,0.92991954]
[1762500673214,0.004489,3344.3,3344.2,0.4847]
[1762500673409,0.004489,3344.3,3344.2,0.9265]
[1762500678815,0.004489,3344.3,3344.2,0.9257]
[1762500684025,1.0832,3345.5,3345.4,0.48452]
[1762500687018,1.56771,3345.5,3345.4,0.48452]
[1762500688220,0.6407,3345.2,3344.1,3.7495598]
[1762500688422,1.023,3345.0,3344.9,0.4846]
[1762500688724,1.50758,3345.0,3344.9,0.4846]
[1762500688917,1.023,3345.0,3343.9,0.00337954]
[1762500689118,0.6407,3344.8,3344.7,0.48461]
[1762500689520,0.3823,3344.5,3343.9,0.00337954]
[1762500689728,0.3823,3344.0,3343.9,0.92991954]
[1762500691322,0.3823,3344.0,3343.9,4.13771954]
[1762500692425,1.023,3344.0,3343.9,3.69591954]
[1762500693325,1.50773,3344.0,3343.9,0.00337954]
[1762500693727,0.6407,3343.2,3343.1,3.69266]
[1762500693932,0.6407,3342.8,3342.7,3.2078]
[1762500694129,0.6407,3342.8,3342.7,3.69271]
[1762500694720,0.64397934,3342.8,3342.7,3.69557651]
[1762500701833,0.00327934,3342.8,3342.7,4.14077651]
[1762500705048,0.57747934,3342.8,3342.7,3.21066651]
[1762500705447,0.57747934,3342.8,3342.7,3.69557651]
[1762500706850,0.57747934,3342.8,3342.7,3.21066651]
[1762500707949,0.00327934,3342.8,3342.7,3.86857651]
[1762500709749,0.57747934,3342.8,3342.7,3.69557651]
[1762500710449,0.57747934,3342.8,3342.7,3.21066651]
[1762500710850,0.57747934,3342.8,3342.7,3.69557651]
[1762500711253,0.00327934,3342.8,3342.7,3.86857651]
[1762500713454,0.004489,3343.1,3343.0,0.65787]
[1762500714459,0.00662967,3343.1,3343.0,0.65787]
[1762500721354,0.3823,3344.0,3343.9,0.65444]
[1762500721549,0.3823,3344.0,3343.9,3.86224]
[1762500721751,0.9565,3344.0,3343.9,3.2078]
[1762500722055,0.9565,3344.0,3343.9,3.69254]
[1762500722557,0.7876,3343.5,3343.4,0.48481]
[1762500723662,0.5742,3343.4,3343.3,0.48483]
[1762500725651,0.48481,3343.4,3343.0,3.5497]
[1762500725850,0.5742,3342.8,3342.7,0.00286651]
[1762500726456,0.5742,3342.8,3342.7,0.48777651]
[1762500727263,0.5742,3342.8,3342.7,1.04577651]
[1762500727962,0.9007,3343.0,3342.9,0.48489]
[1762500728157,0.553,3342.8,3342.7,0.00286651]
[1762500728357,0.553,3342.8,3342.7,0.48777651]
[1762500731666,3.7608,3343.2,3343.1,0.48486]
[1762500731965,2.99226122,3345.0,3342.7,0.00286651]
[1762500731966,0.553,3343.6,3343.5,0.48479]
[1762500732167,0.553,3343.6,3343.5,1.02669]
[1762500732367,3.7608,3343.9,3343.8,0.48475]
[1762500732564,0.55637084,3344.0,3343.9,1.02664]
[1762500732867,0.00337084,3344.0,3343.9,1.02664]
[1762500733074,0.55637084,3344.0,3343.9,0.48474]
[1762500733365,0.72907084,3344.0,3343.9,0.48474]
[1762500733763,0.55637084,3344.0,3343.9,0.48474]
[1762500734260,0.00337084,3344.0,3343.9,1.02664]
[1762500735168,0.55637084,3344.0,3343.9,1.02664]
[1762500736368,0.00337084,3344.0,3343.9,1.02664]
[1762500737271,0.72907084,3344.0,3343.9,0.48474]
[1762500739172,0.00337084,3344.0,3343.9,1.02664]
[1762500739965,0.55637084,3344.0,3343.9,1.02664]
[1762500742174,0.72907084,3344.0,3343.9,0.48474]
[1762500743978,0.55637084,3344.0,3343.9,0.48474]
[1762500745576,3.93687084,3344.0,3343.5,0.3296]
[1762500745777,0.553,3343.1,3343.0,0.48487]
[1762500746170,0.553,3343.1,3343.0,1.35637]
[1762500746777,0.3266,3343.5,3343.2,0.48484]
[1762500746971,0.553,3343.3,3343.2,0.48484]
[1762500747273,0.553,3343.2,3343.1,0.48486]
[1762500747469,0.553,3343.0,3342.6,3.2078]
[1762500747872,0.553,3342.8,3342.7,0.48778651]
[1762500749179,0.553,3342.8,3342.7,1.02968651]
[1762500749376,0.553,3343.0,3342.7,0.00286651]
[1762500749573,0.553,3343.0,3342.9,1.02679]
[1762500750878,0.553,3343.2,3343.1,0.48485]
[1762500751072,0.81141,3343.5,3343.1,0.48486]
[1762500751273,0.48482,3343.4,3343.2,0.48484]
[1762500751581,0.553,3343.3,3343.2,0.48484]
[1762500751779,0.553,3343.1,3343.0,0.48487]
[1762500752776,0.8796,3343.0,3342.7,0.00286651]
[1762500752983,3.7608,3342.8,3342.7,0.00286651]
[1762500753181,4.2457,3342.8,3342.7,0.00286651]
[1762500754080,4.2457,3342.8,3342.7,0.48778651]
[1762500755285,4.2457,3342.8,3342.7,0.00286651]
[1762500755677,4.2457,3342.8,3342.7,0.48778651]
[1762500757385,4.2457,3342.8,3342.7,0.00286651]
[1762500759488,0.4718,3342.9,3342.8,0.48489]
[1762500760897,0.4718,3342.9,3342.8,0.94399]
[1762500761789,3.2078,3343.2,3343.1,0.94396]
[1762500762486,3.6796,3343.2,3343.0,0.2839]
[1762500762689,1.22834,3342.5,3342.4,0.004489]
[1762500762889,4.43614,3342.5,3342.4,0.004489]
[1762500763084,4.43614,3342.5,3342.4,0.489449]
[1762500763489,4.43614,3342.5,3342.4,0.004489]
[1762500763684,4.43614,3342.5,3342.4,0.49304311]
[1762500763882,4.43614,3342.5,3342.4,0.00808311]
[1762500764286,3.2078,3342.5,3342.4,0.95214311]
[1762500764493,3.69274,3342.5,3342.4,0.95214311]
[1762500764886,3.2078,3342.5,3342.4,0.95214311]
[1762500765089,4.43614,3342.5,3342.4,0.00808311]
[1762500765591,4.16454,3342.5,3342.4,0.49304311]
[1762500765987,3.2078,3342.5,3342.4,0.95214311]
[1762500766289,4.43614,3342.5,3342.4,0.00808311]
[1762500767885,4.43614,3342.5,3342.4,0.49304311]
[1762500770791,4.43614,3342.5,3342.4,0.00808311]
[1762500771792,4.43614,3342.5,3342.4,0.00359411]
[1762500772092,0.95687,3341.7,3341.6,0.48507]
[1762500772282,0.95687,3341.7,3341.6,0.94417]
[1762500772785,0.4718,3341.7,3341.6,0.94417]
[1762500772990,0.95686,3341.7,3341.6,0.94689802]
[1762500773990,0.48506,3341.7,3341.6,0.94689802]
[1762500774296,0.95686,3341.7,3341.6,0.94689802]
[1762500776091,0.95686,3341.7,3341.6,0.00272802]
[1762500777091,0.9569,3341.4,3341.3,0.004489]
[1762500777394,0.4718,3340.7,3340.6,0.48521]
[1762500778093,0.47395907,3340.7,3340.6,0.48793802]
[1762500778392,0.47395907,3340.7,3340.6,0.94703802]
[1762500778697,0.95916907,3340.7,3340.6,0.00272802]
[1762500779083,0.47395907,3340.7,3340.6,0.00272802]
[1762500779486,0.95916907,3340.7,3340.6,0.00272802]
[1762500780287,0.47395907,3340.7,3340.6,0.94704802]
[1762500780492,0.95916907,3340.7,3340.6,0.46182802]
[1762500780687,0.95916907,3340.7,3340.6,0.94704802]
[1762500780892,0.47395907,3340.7,3340.6,0.94704802]
[1762500781286,0.95916907,3340.7,3340.6,0.00272802]
[1762500781686,0.95915907,3340.7,3340.6,0.00272802]
[1762500782286,0.00215907,3340.7,3340.6,0.94704802]
[1762500783289,0.47395907,3340.7,3340.6,0.94704802]
[1762500783494,0.00215907,3340.7,3340.6,0.94704802]
[1762500789798,0.00215907,3340.7,3340.6,8.94704802]
[1762500790493,0.00215907,3340.7,3340.6,0.94704802]
[1762500791799,0.44095907,3340.7,3340.6,0.94704802]
[1762500792507,0.44095907,3340.7,3340.6,0.48794802]
[1762500793600,0.00215907,3340.7,3340.6,0.90514802]
[1762500793801,0.44095907,3340.7,3340.6,0.90514802]
[1762500795820,0.00215907,3340.7,3340.6,0.90514802]
[1762500796221,3.64875907,3340.7,3340.6,0.00272802]
[1762500796414,4.13396907,3340.7,3340.6,0.00272802]
[1762500796823,0.6912,3340.0,3339.9,0.48532]
[1762500797621,0.4388,3339.6,3339.5,3.2078]
[1762500797924,0.4388,3339.6,3339.5,0.48786883]
[1762500799424,0.443289,3339.9,3339.8,0.48534]
[1762500799624,0.443289,3339.9,3339.8,0.90254]
[1762500801023,0.443289,3339.9,3339.8,0.48534]
[1762500802925,0.928609,3339.9,3339.5,3.45398883]
[1762500803529,0.443289,3339.9,3339.8,0.48534]
[1762500803919,0.004489,3339.9,3339.8,0.90254]
[1762500804317,0.004489,3339.9,3339.8,0.4172]
[1762500804526,0.004489,3339.9,3339.7,0.48534]
[1762500804527,0.443289,3339.9,3339.5,3.45398883]
[1762500804733,0.4388,3339.7,3339.5,3.45398883]
[1762500805027,0.4388,3339.6,3339.5,0.24618883]
[1762500805230,0.4388,3339.6,3339.5,0.73156883]
[1762500805425,0.4388,3339.6,3339.5,1.14876883]
[1762500805625,4.136419,3339.9,3339.8,0.48534]
[1762500805828,3.651089,3339.9,3339.8,0.48534]
[1762500806230,0.4388,3339.8,3339.7,0.48535]
[1762500806629,0.004489,3339.9,3339.8,0.90254]
[1762500810234,0.443289,3339.9,3339.8,0.90254]
[1762500810437,0.004489,3339.9,3339.8,0.90254]
[1762500812137,0.928609,3339.9,3339.8,0.4172]
[1762500812339,0.004489,3339.9,3339.8,0.4172]
[1762500812537,0.004489,3339.9,3339.8,0.90254]
[1762500812840,0.928609,3339.9,3339.8,0.90254]
[1762500813336,0.92416,3339.7,3339.6,0.4172]
[1762500813633,0.443289,3339.9,3339.8,0.48534]
[1762500813830,0.004489,3339.9,3339.8,0.90254]
[1762500814227,0.443289,3339.9,3339.8,0.90254]
[1762500815240,0.004489,3339.9,3339.8,0.90254]
[1762500819938,3.20995907,3340.7,3339.7,3.11034]
[1762500820242,3.20995907,3340.7,3339.5,0.24618883]
[1762500820243,0.00215907,3340.7,3340.6,0.87412]
[1762500822444,0.004489,3341.0,3340.9,0.3889]
[1762500822744,0.004489,3341.0,3340.9,0.87408]
[1762500823147,0.2298,3341.5,3341.4,0.4851]
[1762500823346,0.605,3341.5,3341.4,3.2078]
[1762500823643,0.3752,3341.2,3341.1,0.48515]
[1762500823842,0.86033,3341.2,3340.9,0.48516]
[1762500824041,0.605,3341.0,3340.9,0.48516]
[1762500824343,0.2298,3341.0,3340.9,0.48516]
[1762500825740,0.605,3341.0,3340.9,0.48516]
[1762500826441,0.2298,3341.0,3340.7,0.004489]
[1762500826641,0.2298,3341.0,3340.9,0.48518]
[1762500827145,0.004489,3341.4,3341.3,0.48512]
[1762500829045,0.3752,3341.3,3341.2,3.2078]
[1762500829238,0.3752,3341.3,3341.2,3.69293]
[1762500829439,0.004489,3341.4,3341.3,0.48512]
[1762500830338,0.864789,3341.4,3341.3,0.48512]
[1762500831142,0.004489,3341.4,3341.3,0.48512]
[1762500832046,0.379689,3341.4,3341.2,2.52182]
[1762500832344,0.56839,3340.1,3340.0,0.2333]
[1762500832642,3.77619,3340.1,3340.0,0.2333]
[1762500836150,3.77619,3340.1,3340.0,0.6222]
[1762500837149,3.2078,3340.1,3340.0,1.10751]
[1762500837445,3.69309,3340.1,3340.0,0.6222]
[1762500837646,3.69302,3340.6,3340.5,0.3889]
[1762500837945,0.48526,3340.3,3340.1,0.48529]
[1762500838147,0.48526,3340.3,3340.2,0.3889]
[1762500838346,0.48526,3340.4,3340.3,0.87416]
[1762500838547,0.86046,3340.4,3340.3,0.3889]
[1762500839345,0.4853,3340.1,3340.0,0.8742]
[1762500839744,0.4853,3340.1,3340.0,0.3889]
[1762500839950,4.0683,3340.1,3340.0,0.87421]
[1762500840341,0.48534,3339.8,3339.7,0.393389]
[1762500840548,0.86052,3339.9,3339.8,0.87424]
[1762500841651,3.69309,3340.1,3340.0,0.3889]
[1762500841849,3.2078,3340.1,3340.0,0.96821]
[1762500842040,0.48528,3340.2,3340.1,0.3889]
[1762500842652,3.2078,3340.6,3340.5,0.3889]
[1762500842848,4.06822,3340.6,3340.5,0.3889]
[1762500843148,0.86045,3340.4,3340.3,0.3889]
[1762500843551,0.86045,3340.4,3340.3,0.87416]
[1762500843749,0.86045,3340.4,3340.3,0.3889]
[1762500844253,0.86045,3340.4,3340.3,0.87416]
[1762500844948,3.2078,3340.6,3340.3,0.87416]
[1762500845256,0.48516,3341.0,3340.9,0.87407]
[1762500845455,0.86041,3340.7,3340.2,3.2078]
[1762500845650,0.8604,3340.8,3340.7,0.4852]
[1762500846154,0.71505,3340.5,3340.4,0.48525]
[1762500846458,0.48525,3340.5,3340.4,0.87415]
[1762500847052,1.09025,3340.5,3340.4,0.3889]
[1762500847253,0.48529,3340.3,3340.2,0.87417]
[1762500847553,3.2078,3340.8,3340.7,0.3889]
[1762500848556,3.69299,3340.8,3340.7,0.8741]
[1762500849051,0.92932,3340.7,3340.6,0.48522]
[1762500849259,1.19985,3340.5,3340.4,0.48524]
[1762500850153,0.7146,3340.5,3340.4,0.48524]
[1762500850356,1.19983,3340.5,3340.4,0.48524]
[1762500850755,0.4441,3340.7,3340.6,0.93122]
[1762500850960,3.2078,3340.8,3340.7,0.9312]
[1762500851356,3.212289,3341.4,3341.2,0.48512]
[1762500851660,0.48513,3341.3,3341.2,0.93112]
[1762500852060,0.48515,3341.1,3341.0,0.93115]
[1762500852262,3.697389,3341.4,3341.3,0.93112]
[1762500852962,3.212289,3341.4,3341.0,0.6993]
[1762500853258,0.48518,3341.0,3340.9,0.93117]
[1762500853462,0.48515,3341.1,3341.0,0.48514]
[1762500855166,3.212289,3341.4,3341.3,0.93112]
[1762500855459,3.656389,3341.4,3341.3,0.48512]
[1762500856265,0.92924,3341.2,3341.1,0.93114]
[1762500856464,0.4441,3341.0,3340.9,3.2078]
[1762500856667,4.40756,3341.0,3340.9,0.48518]
[1762500857165,4.40756,3341.0,3340.5,0.2533]
[1762500857166,0.92932,3340.7,3340.6,0.9312]
[1762500857366,0.92932,3340.7,3340.6,0.4852]
[1762500857759,0.48524,3340.6,3340.0,0.094]
[1762500858369,3.69296,3341.0,3340.9,0.446]
[1762500858571,0.48518,3340.9,3340.8,0.48518]
[1762500858771,0.92928,3340.9,3340.8,0.48518]
[1762500858964,0.48522,3340.7,3340.6,0.48522]
[1762500859174,0.92932,3340.7,3340.1,3.2078]
[1762500859669,0.48523,3340.6,3340.5,0.446]
[1762500860670,0.48523,3340.6,3340.5,0.93123]
[1762500861069,0.92929,3340.8,3340.7,0.48519]
[1762500861272,0.48522,3340.7,3340.6,0.93122]
[1762500861473,0.92932,3340.7,3340.6,0.48522]
[1762500861972,0.48523,3340.6,3340.5,0.93123]
[1762500862871,0.48521,3340.7,3340.6,0.4852]
[1762500863176,0.48521,3340.7,3340.6,0.9312]
[1762500864173,0.92931,3340.7,3340.6,0.9312]
[1762500865071,0.2705,3340.5,3340.2,3.2078]
[1762500865279,0.4441,3340.2,3340.1,0.48529]
[1762500865578,0.4441,3340.2,3340.1,0.93129]
[1762500865876,0.2705,3340.5,3340.2,0.93128]